[Event "*** SCC Grand Prix: Titled Tuesday Blitz"]
[Site "Chess.com"]
[Date "2020.10.13"]
[Round "7"]
[White "Guenplen"]
[Black "VitaliyBernadskiy"]
[Result "1-0"]
[WhiteElo "2868"]
[BlackElo "2746"]
[TimeControl "180+1"]
[EndTime "11:17:12 PDT"]
[Termination "Guenplen won by resignation"]

1. d4 {[%clk 0:03:00.9]} 1... g6 {[%clk 0:03:00.1]} 2. Bf4 {[%clk 0:02:57.7]}
2... Bg7 {[%clk 0:02:59.9]} 3. Nf3 {[%clk 0:02:58.2]} 3... c5 {[%clk 0:02:58.2]}
4. e3 {[%clk 0:02:49.3]} 4... Nf6 {[%clk 0:02:54.3]} 5. c3 {[%clk 0:02:46.9]}
5... b6 {[%clk 0:02:47.3]} 6. h3 {[%clk 0:02:44.2]} 6... O-O {[%clk 0:02:47]} 7.
Nbd2 {[%clk 0:02:43.3]} 7... d6 {[%clk 0:02:44.9]} 8. a4 {[%clk 0:02:43]} 8...
Ba6 {[%clk 0:02:41.4]} 9. Bxa6 {[%clk 0:02:40.1]} 9... Nxa6 {[%clk 0:02:42.3]}
10. O-O {[%clk 0:02:40.7]} 10... Nc7 {[%clk 0:02:42.1]} 11. Re1 {[%clk
0:02:35.9]} 11... a6 {[%clk 0:02:35.5]} 12. Qb3 {[%clk 0:02:23.7]} 12... Rb8
{[%clk 0:02:23.8]} 13. Bg3 {[%clk 0:02:22.8]} 13... Nd7 {[%clk 0:02:18]} 14. e4
{[%clk 0:02:18.2]} 14... b5 {[%clk 0:02:16]} 15. axb5 {[%clk 0:02:14.4]} 15...
Nxb5 {[%clk 0:02:16.2]} 16. Qa4 {[%clk 0:02:03.9]} 16... cxd4 {[%clk 0:02:00]}
17. cxd4 {[%clk 0:02:04.8]} 17... a5 {[%clk 0:01:17.5]} 18. e5 {[%clk
0:01:59.3]} 18... dxe5 {[%clk 0:01:15.1]} 19. dxe5 {[%clk 0:01:56]} 19... Nc5
{[%clk 0:00:54.7]} 20. Qxa5 {[%clk 0:01:51.4]} 20... Nd3 {[%clk 0:00:54.8]} 21.
Qxd8 {[%clk 0:01:33.2]} 21... Rfxd8 {[%clk 0:00:55.7]} 22. Reb1 {[%clk
0:01:20.7]} 22... e6 {[%clk 0:00:55.8]} 23. Ne4 {[%clk 0:01:14.9]} 23... Nd4
{[%clk 0:00:55.8]} 24. Nxd4 {[%clk 0:01:01.2]} 24... Rxd4 {[%clk 0:00:56.7]} 25.
Nf6+ {[%clk 0:01:01.8]} 25... Bxf6 {[%clk 0:00:46.6]} 26. exf6 {[%clk
0:01:02.7]} 26... Rbd8 {[%clk 0:00:45.7]} 27. Bc7 {[%clk 0:00:53.4]} 27... Rc8
{[%clk 0:00:43.4]} 28. Ra7 {[%clk 0:00:45.6]} 28... Nb4 {[%clk 0:00:27.1]} 29.
Be5 {[%clk 0:00:39.6]} 29... Re4 {[%clk 0:00:26.7]} 30. Bd6 {[%clk 0:00:25.1]}
30... Nd5 {[%clk 0:00:24.3]} 31. Be7 {[%clk 0:00:22]} 31... h5 {[%clk
0:00:21.9]} 32. b4 {[%clk 0:00:22.2]} 32... Rc2 {[%clk 0:00:14.6]} 33. Ra8+
{[%clk 0:00:18]} 33... Kh7 {[%clk 0:00:14.2]} 34. Rf8 {[%clk 0:00:18.9]} 34...
Ree2 {[%clk 0:00:07.2]} 35. Rxf7+ {[%clk 0:00:16.3]} 35... Kh6 {[%clk
0:00:07.5]} 36. h4 {[%clk 0:00:13.2]} 36... g5 {[%clk 0:00:07.8]} 37. Rg7 {[%clk
0:00:11.9]} 37... gxh4 {[%clk 0:00:05.7]} 38. f7 {[%clk 0:00:09.8]} 38... Rxf2
{[%clk 0:00:04.5]} 39. f8=Q {[%clk 0:00:09.6]} 39... Rxf8 {[%clk 0:00:04.4]} 40.
Bxf8 {[%clk 0:00:10.5]} 1-0

[Event "*** SCC Grand Prix: Titled Tuesday Blitz"]
[Site "Chess.com"]
[Date "2020.10.13"]
[Round "7"]
[White "TomiLen"]
[Black "nrvisakh"]
[Result "0-1"]
[WhiteElo "2592"]
[BlackElo "2801"]
[TimeControl "180+1"]
[EndTime "11:17:13 PDT"]
[Termination "nrvisakh won by resignation"]

1. d4 {[%clk 0:03:00.9]} 1... Nf6 {[%clk 0:02:59.7]} 2. c4 {[%clk 0:03:01]} 2...
g6 {[%clk 0:03:00.1]} 3. Nc3 {[%clk 0:03:00.7]} 3... Bg7 {[%clk 0:03:00.5]} 4.
e4 {[%clk 0:03:00.4]} 4... d6 {[%clk 0:03:01]} 5. Be2 {[%clk 0:03:00.7]} 5...
O-O {[%clk 0:03:01.2]} 6. Bg5 {[%clk 0:03:01.2]} 6... c6 {[%clk 0:02:18.1]} 7.
Qd2 {[%clk 0:02:55.3]} 7... e5 {[%clk 0:02:15.3]} 8. Nf3 {[%clk 0:02:52]} 8...
exd4 {[%clk 0:02:14.2]} 9. Nxd4 {[%clk 0:02:51.5]} 9... Re8 {[%clk 0:02:12.7]}
10. f3 {[%clk 0:02:48.4]} 10... h6 {[%clk 0:02:11.9]} 11. Be3 {[%clk 0:02:36.9]}
11... d5 {[%clk 0:02:10.6]} 12. exd5 {[%clk 0:02:31.7]} 12... cxd5 {[%clk
0:02:10.6]} 13. Bf2 {[%clk 0:02:31.6]} 13... Nc6 {[%clk 0:01:44.9]} 14. O-O
{[%clk 0:02:15.3]} 14... dxc4 {[%clk 0:01:42.2]} 15. Bxc4 {[%clk 0:02:09.2]}
15... Be6 {[%clk 0:01:39.2]} 16. Bb5 {[%clk 0:01:55.8]} 16... Nxd4 {[%clk
0:01:34.9]} 17. Qxd4 {[%clk 0:01:39.7]} 17... Nd5 {[%clk 0:01:26]} 18. Qa4
{[%clk 0:01:17.3]} 18... Nxc3 {[%clk 0:01:19.1]} 19. bxc3 {[%clk 0:01:18.2]}
19... Re7 {[%clk 0:01:18.3]} 20. Bd4 {[%clk 0:01:14.5]} 20... a6 {[%clk
0:01:14]} 21. Bxg7 {[%clk 0:01:07.3]} 21... Kxg7 {[%clk 0:01:13.1]} 22. Be2
{[%clk 0:01:01.6]} 22... b5 {[%clk 0:00:59.7]} 23. Qc2 {[%clk 0:00:48.7]} 23...
Bf5 {[%clk 0:00:55.5]} 24. Qb2 {[%clk 0:00:48.6]} 24... Qb6+ {[%clk 0:00:52.1]}
25. Rf2 {[%clk 0:00:45.4]} 25... Rae8 {[%clk 0:00:53]} 26. Bf1 {[%clk
0:00:44.8]} 26... Qf6 {[%clk 0:00:39.8]} 27. a4 {[%clk 0:00:40.9]} 27... bxa4
{[%clk 0:00:40]} 28. Rxa4 {[%clk 0:00:34.6]} 28... Re1 {[%clk 0:00:39.7]} 29.
Ra1 {[%clk 0:00:28.1]} 29... Bd3 {[%clk 0:00:29.1]} 30. Rxe1 {[%clk 0:00:27]}
30... Rxe1 {[%clk 0:00:30]} 31. Qd2 {[%clk 0:00:22.6]} 31... Rxf1+ {[%clk
0:00:29.9]} 32. Rxf1 {[%clk 0:00:22.8]} 32... Bxf1 {[%clk 0:00:30.8]} 33. Kxf1
{[%clk 0:00:23.7]} 33... a5 {[%clk 0:00:31.7]} 34. c4 {[%clk 0:00:18.4]} 34...
a4 {[%clk 0:00:32]} 35. c5 {[%clk 0:00:17.5]} 35... a3 {[%clk 0:00:31.5]} 36.
Ke2 {[%clk 0:00:13.5]} 36... Qa6+ {[%clk 0:00:26.7]} 37. Kf2 {[%clk 0:00:11.9]}
37... Qc4 {[%clk 0:00:20.3]} 38. c6 {[%clk 0:00:10.4]} 38... Qxc6 {[%clk
0:00:16.8]} 39. Qd4+ {[%clk 0:00:09]} 39... Qf6 {[%clk 0:00:16.3]} 40. Qa4
{[%clk 0:00:08.5]} 40... Qb2+ {[%clk 0:00:16]} 41. Kg3 {[%clk 0:00:08.4]} 41...
a2 {[%clk 0:00:16.4]} 0-1

[Event "*** SCC Grand Prix: Titled Tuesday Blitz"]
[Site "Chess.com"]
[Date "2020.10.13"]
[Round "7"]
[White "Alexsur1981"]
[Black "Hikaru"]
[Result "0-1"]
[WhiteElo "2806"]
[BlackElo "3217"]
[TimeControl "180+1"]
[EndTime "11:17:19 PDT"]
[Termination "Hikaru won on time"]

1. e4 {[%clk 0:03:00.9]} 1... e5 {[%clk 0:02:58.3]} 2. Bc4 {[%clk 0:02:59.3]}
2... Nc6 {[%clk 0:02:57.1]} 3. d3 {[%clk 0:02:59.2]} 3... Bc5 {[%clk 0:02:56.5]}
4. Nc3 {[%clk 0:02:57.1]} 4... d6 {[%clk 0:02:53.3]} 5. Na4 {[%clk 0:02:49.4]}
5... Bb6 {[%clk 0:02:39.4]} 6. Nxb6 {[%clk 0:02:48.9]} 6... axb6 {[%clk
0:02:40.3]} 7. c3 {[%clk 0:02:42.6]} 7... Be6 {[%clk 0:02:35.3]} 8. Bb5 {[%clk
0:02:38.3]} 8... Ne7 {[%clk 0:02:33.1]} 9. Ne2 {[%clk 0:02:30.1]} 9... O-O
{[%clk 0:02:32.4]} 10. O-O {[%clk 0:02:30.3]} 10... f5 {[%clk 0:02:19.8]} 11. f3
{[%clk 0:02:12.2]} 11... d5 {[%clk 0:02:15.8]} 12. Bg5 {[%clk 0:01:53.4]} 12...
Qd6 {[%clk 0:02:15.4]} 13. Bxc6 {[%clk 0:01:50.8]} 13... bxc6 {[%clk 0:02:05.8]}
14. Qc2 {[%clk 0:01:39]} 14... Ng6 {[%clk 0:02:02.4]} 15. Be3 {[%clk 0:01:32.6]}
15... c5 {[%clk 0:02:00.8]} 16. c4 {[%clk 0:01:24.6]} 16... d4 {[%clk 0:01:35]}
17. Bd2 {[%clk 0:01:24.2]} 17... f4 {[%clk 0:01:33.2]} 18. a3 {[%clk 0:01:19.2]}
18... Bd7 {[%clk 0:01:29]} 19. Be1 {[%clk 0:01:16.7]} 19... Ne7 {[%clk
0:01:27.3]} 20. b4 {[%clk 0:01:09.9]} 20... cxb4 {[%clk 0:01:27.5]} 21. Bxb4
{[%clk 0:01:06.8]} 21... c5 {[%clk 0:01:27.8]} 22. Be1 {[%clk 0:01:03.9]} 22...
Ba4 {[%clk 0:01:24.5]} 23. Qb2 {[%clk 0:01:03.1]} 23... g5 {[%clk 0:01:24.6]}
24. g4 {[%clk 0:00:56.2]} 24... Rfb8 {[%clk 0:01:08.7]} 25. h4 {[%clk
0:00:51.4]} 25... b5 {[%clk 0:01:07.4]} 26. Qc1 {[%clk 0:00:50.5]} 26... h6
{[%clk 0:01:05.8]} 27. Rf2 {[%clk 0:00:50.5]} 27... Qe6 {[%clk 0:01:03.1]} 28.
hxg5 {[%clk 0:00:44.3]} 28... bxc4 {[%clk 0:01:01.4]} 29. dxc4 {[%clk
0:00:40.2]} 29... hxg5 {[%clk 0:01:01.6]} 30. Rh2 {[%clk 0:00:40.7]} 30... Be8
{[%clk 0:00:57.5]} 31. a4 {[%clk 0:00:32.4]} 31... Rb3 {[%clk 0:00:53.8]} 32.
Kg2 {[%clk 0:00:24.9]} 32... Bg6 {[%clk 0:00:44.6]} 33. Rb1 {[%clk 0:00:16.6]}
33... Rxb1 {[%clk 0:00:36.6]} 34. Qxb1 {[%clk 0:00:17.5]} 34... Qxc4 {[%clk
0:00:36.6]} 35. Kf2 {[%clk 0:00:15.9]} 35... Qa6 {[%clk 0:00:31]} 36. Qb3+
{[%clk 0:00:12.6]} 36... Kg7 {[%clk 0:00:30.9]} 37. Nc1 {[%clk 0:00:10.7]} 37...
c4 {[%clk 0:00:20.3]} 38. Qb4 {[%clk 0:00:10.6]} 38... Qe6 {[%clk 0:00:20.6]}
39. a5 {[%clk 0:00:10.3]} 39... c3 {[%clk 0:00:20]} 40. Qc5 {[%clk 0:00:09.3]}
40... Rc8 {[%clk 0:00:17]} 41. Qb5 {[%clk 0:00:07.7]} 41... Be8 {[%clk
0:00:15.5]} 42. Qb7 {[%clk 0:00:06.3]} 42... Bc6 {[%clk 0:00:15.8]} 43. Qb6
{[%clk 0:00:06.2]} 43... Bd7 {[%clk 0:00:15.1]} 44. Qb7 {[%clk 0:00:04.7]} 44...
Qc6 {[%clk 0:00:15.4]} 45. Qb4 {[%clk 0:00:04.8]} 45... Ng6 {[%clk 0:00:15.9]}
46. Nd3 {[%clk 0:00:04.3]} 46... Qa6 {[%clk 0:00:16]} 47. Ke2 {[%clk 0:00:02.1]}
47... Bb5 {[%clk 0:00:15.8]} 0-1

[Event "*** SCC Grand Prix: Titled Tuesday Blitz"]
[Site "Chess.com"]
[Date "2020.10.13"]
[Round "7"]
[White "frederiksvane"]
[Black "Lion-Al-Messi"]
[Result "1-0"]
[WhiteElo "2691"]
[BlackElo "2549"]
[TimeControl "180+1"]
[EndTime "11:17:24 PDT"]
[Termination "frederiksvane won by resignation"]

1. e4 {[%clk 0:03:00.9]} 1... e6 {[%clk 0:03:00.3]} 2. d4 {[%clk 0:03:01]} 2...
d5 {[%clk 0:03:00.8]} 3. Nd2 {[%clk 0:03:01.7]} 3... c5 {[%clk 0:03:00.3]} 4.
exd5 {[%clk 0:03:02]} 4... Qxd5 {[%clk 0:02:59.8]} 5. Ngf3 {[%clk 0:03:02.9]}
5... cxd4 {[%clk 0:02:59.4]} 6. Bc4 {[%clk 0:03:03.6]} 6... Qd6 {[%clk
0:02:59.7]} 7. O-O {[%clk 0:03:04.3]} 7... Nf6 {[%clk 0:03:00]} 8. Nb3 {[%clk
0:03:04.9]} 8... Nc6 {[%clk 0:03:00.2]} 9. Nbxd4 {[%clk 0:03:05.6]} 9... Nxd4
{[%clk 0:03:01.1]} 10. Nxd4 {[%clk 0:03:06.3]} 10... Be7 {[%clk 0:03:01.6]} 11.
c3 {[%clk 0:03:01.8]} 11... O-O {[%clk 0:03:01.3]} 12. Qf3 {[%clk 0:03:01.9]}
12... a6 {[%clk 0:03:00.7]} 13. Bb3 {[%clk 0:02:51.9]} 13... e5 {[%clk
0:03:00.4]} 14. Nf5 {[%clk 0:02:51]} 14... Bxf5 {[%clk 0:02:57.2]} 15. Qxf5
{[%clk 0:02:51.9]} 15... Rad8 {[%clk 0:02:52.2]} 16. Bg5 {[%clk 0:02:35.9]}
16... g6 {[%clk 0:02:45.6]} 17. Qh3 {[%clk 0:02:10.8]} 17... Ne4 {[%clk
0:02:43.1]} 18. Be3 {[%clk 0:02:02.5]} 18... Bf6 {[%clk 0:02:36.8]} 19. Rad1
{[%clk 0:02:00.4]} 19... Qe7 {[%clk 0:02:36.3]} 20. Qf3 {[%clk 0:01:57]} 20...
Ng5 {[%clk 0:02:30.3]} 21. Qe2 {[%clk 0:01:55.6]} 21... Ne6 {[%clk 0:02:24]} 22.
Qc4 {[%clk 0:01:53.4]} 22... Bg7 {[%clk 0:02:22]} 23. Qe4 {[%clk 0:01:46.8]}
23... Kh8 {[%clk 0:02:17.2]} 24. Qc4 {[%clk 0:01:25.6]} 24... h5 {[%clk
0:02:13.2]} 25. h3 {[%clk 0:01:22.2]} 25... Qf6 {[%clk 0:02:11.6]} 26. Qb4
{[%clk 0:01:18.1]} 26... b5 {[%clk 0:02:02.3]} 27. Rd6 {[%clk 0:01:07.7]} 27...
Rxd6 {[%clk 0:02:01.4]} 28. Qxd6 {[%clk 0:01:08.6]} 28... a5 {[%clk 0:01:48.5]}
29. Bxe6 {[%clk 0:01:08.5]} 29... fxe6 {[%clk 0:01:43.4]} 30. Rd1 {[%clk
0:01:08.3]} 30... Kh7 {[%clk 0:01:23.6]} 31. Qb6 {[%clk 0:01:06.1]} 31... b4
{[%clk 0:01:16.3]} 32. cxb4 {[%clk 0:01:06]} 32... axb4 {[%clk 0:01:05.1]} 33.
Qxb4 {[%clk 0:01:06.9]} 33... Rf7 {[%clk 0:01:02.6]} 34. Qd2 {[%clk 0:00:59.4]}
34... e4 {[%clk 0:01:00]} 35. b3 {[%clk 0:00:59.2]} 35... Rb7 {[%clk 0:00:40.1]}
36. Qc2 {[%clk 0:00:58.5]} 36... Qf5 {[%clk 0:00:35.6]} 37. Qc8 {[%clk
0:00:53.7]} 37... Rb5 {[%clk 0:00:30.8]} 38. Rd7 {[%clk 0:00:45.1]} 38... Rd5
{[%clk 0:00:29.4]} 39. Qb7 {[%clk 0:00:45.2]} 39... Rxd7 {[%clk 0:00:21.2]} 40.
Qxd7 {[%clk 0:00:46.1]} 40... g5 {[%clk 0:00:20.5]} 41. Qd1 {[%clk 0:00:39]}
41... g4 {[%clk 0:00:18.3]} 42. hxg4 {[%clk 0:00:38.8]} 42... hxg4 {[%clk
0:00:19.2]} 43. g3 {[%clk 0:00:38.8]} 43... Kg6 {[%clk 0:00:18.7]} 44. a4 {[%clk
0:00:38.7]} 44... Qd5 {[%clk 0:00:07.8]} 45. Qxd5 {[%clk 0:00:18.7]} 45... exd5
{[%clk 0:00:08.7]} 46. a5 {[%clk 0:00:19.3]} 46... d4 {[%clk 0:00:08.6]} 47. a6
{[%clk 0:00:19.8]} 47... d3 {[%clk 0:00:03.6]} 48. a7 {[%clk 0:00:18.9]} 48...
Bd4 {[%clk 0:00:03.9]} 49. a8=Q {[%clk 0:00:17.8]} 1-0

[Event "*** SCC Grand Prix: Titled Tuesday Blitz"]
[Site "Chess.com"]
[Date "2020.10.13"]
[Round "7"]
[White "IngOscarArdila"]
[Black "Aguiar94"]
[Result "0-1"]
[WhiteElo "2163"]
[BlackElo "2578"]
[TimeControl "180+1"]
[EndTime "11:17:25 PDT"]
[Termination "Aguiar94 won on time"]

1. d4 {[%clk 0:03:00.9]} 1... Nf6 {[%clk 0:02:59.1]} 2. c4 {[%clk 0:03:00]} 2...
e6 {[%clk 0:02:59]} 3. Nc3 {[%clk 0:02:59.2]} 3... Bb4 {[%clk 0:02:59.3]} 4. Bd2
{[%clk 0:02:58.7]} 4... O-O {[%clk 0:02:58.7]} 5. e3 {[%clk 0:02:57.4]} 5... Re8
{[%clk 0:02:58.1]} 6. Bd3 {[%clk 0:02:56.6]} 6... e5 {[%clk 0:02:57.6]} 7. dxe5
{[%clk 0:02:49.1]} 7... Rxe5 {[%clk 0:02:58.5]} 8. Nf3 {[%clk 0:02:48.3]} 8...
Re8 {[%clk 0:02:58.6]} 9. Qc2 {[%clk 0:02:47.3]} 9... h6 {[%clk 0:02:53.7]} 10.
O-O {[%clk 0:02:46.1]} 10... c6 {[%clk 0:02:46.9]} 11. a3 {[%clk 0:02:44.5]}
11... Bf8 {[%clk 0:02:45.7]} 12. Rad1 {[%clk 0:02:40.4]} 12... a5 {[%clk
0:02:42.9]} 13. Rfe1 {[%clk 0:02:24.9]} 13... Na6 {[%clk 0:02:43.2]} 14. Ne4
{[%clk 0:02:15.3]} 14... Nxe4 {[%clk 0:02:41.8]} 15. Bxe4 {[%clk 0:02:15.4]}
15... Nc5 {[%clk 0:02:40]} 16. Bh7+ {[%clk 0:02:11.5]} 16... Kh8 {[%clk
0:02:39.9]} 17. Bf5 {[%clk 0:02:11.9]} 17... d6 {[%clk 0:02:30]} 18. Bc3 {[%clk
0:02:11]} 18... Bxf5 {[%clk 0:02:16.8]} 19. Qxf5 {[%clk 0:02:10.3]} 19... Kg8
{[%clk 0:02:10.2]} 20. Rd4 {[%clk 0:01:47.1]} 20... Na4 {[%clk 0:02:02.9]} 21.
Rf4 {[%clk 0:01:45.3]} 21... Qc7 {[%clk 0:01:58]} 22. Bd4 {[%clk 0:01:23.8]}
22... c5 {[%clk 0:01:55.2]} 23. Bf6 {[%clk 0:00:43.4]} 23... Re6 {[%clk
0:01:49.5]} 24. Rg4 {[%clk 0:00:40.3]} 24... Kh8 {[%clk 0:01:45.3]} 25. Bh4
{[%clk 0:00:30.5]} 25... Rae8 {[%clk 0:01:25.6]} 26. b3 {[%clk 0:00:27.5]} 26...
Nc3 {[%clk 0:01:22.5]} 27. Qc2 {[%clk 0:00:23.3]} 27... Ne4 {[%clk 0:01:21.8]}
28. Nd2 {[%clk 0:00:19.3]} 28... f5 {[%clk 0:01:15.6]} 29. Rf4 {[%clk
0:00:09.8]} 29... Nxd2 {[%clk 0:01:13.9]} 30. Qxd2 {[%clk 0:00:08.6]} 30... g5
{[%clk 0:01:14.4]} 31. Rxf5 {[%clk 0:00:05.6]} 31... gxh4 {[%clk 0:01:14.8]} 32.
Qe2 {[%clk 0:00:04.6]} 32... Qg7 {[%clk 0:01:10.6]} 33. Qf3 {[%clk 0:00:03.6]}
33... Be7 {[%clk 0:01:03.7]} 34. h3 {[%clk 0:00:03.7]} 34... Bf6 {[%clk
0:01:00.2]} 35. Qd5 {[%clk 0:00:02.3]} 35... Be5 {[%clk 0:01:00.1]} 36. Qf3
{[%clk 0:00:01.6]} 36... Rf6 {[%clk 0:00:58.9]} 37. Rxf6 {[%clk 0:00:01.4]}
37... Bxf6 {[%clk 0:00:59.8]} 38. Qd5 {[%clk 0:00:01.8]} 38... Be5 {[%clk
0:00:59.4]} 39. Rd1 {[%clk 0:00:02.3]} 39... Qf8 {[%clk 0:00:44.5]} 40. b4
{[%clk 0:00:03.2]} 40... axb4 {[%clk 0:00:43.6]} 41. axb4 {[%clk 0:00:04.1]}
41... cxb4 {[%clk 0:00:44.1]} 42. c5 {[%clk 0:00:04.2]} 42... dxc5 {[%clk
0:00:43.3]} 43. Qe4 {[%clk 0:00:03.4]} 43... b3 {[%clk 0:00:41.8]} 44. Qc4
{[%clk 0:00:03.2]} 44... b2 {[%clk 0:00:41]} 45. Qc2 {[%clk 0:00:03.7]} 45...
Rd8 {[%clk 0:00:35.9]} 46. Rb1 {[%clk 0:00:03.2]} 46... Qg7 {[%clk 0:00:34.4]}
47. Qxc5 {[%clk 0:00:02]} 47... Bc3 {[%clk 0:00:31.2]} 48. f4 {[%clk 0:00:01.8]}
48... Bd2 {[%clk 0:00:29.2]} 49. Kh2 {[%clk 0:00:01.5]} 49... Qg3+ {[%clk
0:00:27.2]} 0-1

[Event "*** SCC Grand Prix: Titled Tuesday Blitz"]
[Site "Chess.com"]
[Date "2020.10.13"]
[Round "7"]
[White "oogee"]
[Black "Sn00pPawn"]
[Result "1-0"]
[WhiteElo "2221"]
[BlackElo "1974"]
[TimeControl "180+1"]
[EndTime "11:17:26 PDT"]
[Termination "oogee won by checkmate"]

1. e4 {[%clk 0:03:00.9]} 1... c5 {[%clk 0:02:55.4]} 2. Nc3 {[%clk 0:02:58.2]}
2... Nc6 {[%clk 0:02:54.3]} 3. f4 {[%clk 0:02:58.4]} 3... g6 {[%clk 0:02:53.8]}
4. Nf3 {[%clk 0:02:58.6]} 4... Bg7 {[%clk 0:02:53.7]} 5. Bb5 {[%clk 0:02:57.7]}
5... Nd4 {[%clk 0:02:50.3]} 6. Bc4 {[%clk 0:02:57.3]} 6... e6 {[%clk 0:02:50.1]}
7. d3 {[%clk 0:02:53.7]} 7... Ne7 {[%clk 0:02:49.4]} 8. a4 {[%clk 0:02:52.2]}
8... O-O {[%clk 0:02:45.4]} 9. e5 {[%clk 0:02:50.8]} 9... d6 {[%clk 0:02:33.4]}
10. exd6 {[%clk 0:02:47.7]} 10... Qxd6 {[%clk 0:02:30.5]} 11. Ne4 {[%clk
0:02:47.7]} 11... Qc7 {[%clk 0:02:29.3]} 12. c3 {[%clk 0:02:45.1]} 12... Nxf3+
{[%clk 0:01:59]} 13. Qxf3 {[%clk 0:02:44]} 13... b6 {[%clk 0:01:44.6]} 14. Nd6
{[%clk 0:02:01.4]} 14... Qxd6 {[%clk 0:01:36.9]} 15. Qxa8 {[%clk 0:02:01.2]}
15... Nc6 {[%clk 0:01:32.6]} 16. Bb5 {[%clk 0:02:00.7]} 16... Bd7 {[%clk
0:01:31.8]} 17. Qb7 {[%clk 0:01:59.2]} 17... Rb8 {[%clk 0:01:28.6]} 18. Bxc6
{[%clk 0:01:55.5]} 18... Rxb7 {[%clk 0:01:28.1]} 19. Bxb7 {[%clk 0:01:55.4]}
19... Qxd3 {[%clk 0:01:09.9]} 20. Bf3 {[%clk 0:01:51]} 20... Bxc3+ {[%clk
0:01:05.1]} 21. Kf2 {[%clk 0:01:41.1]} 21... Bxb2 {[%clk 0:00:52.6]} 22. Bxb2
{[%clk 0:01:34.7]} 22... Qc2+ {[%clk 0:00:51.1]} 23. Kg3 {[%clk 0:01:32.9]}
23... Qxb2 {[%clk 0:00:50.7]} 24. Rhd1 {[%clk 0:01:29.5]} 24... e5 {[%clk
0:00:20.5]} 25. Rab1 {[%clk 0:00:47.1]} 25... exf4+ {[%clk 0:00:19.3]} 26. Kxf4
{[%clk 0:00:47.2]} 26... Qf6+ {[%clk 0:00:18.5]} 27. Kg3 {[%clk 0:00:47.5]}
27... Bf5 {[%clk 0:00:17.2]} 28. Rbc1 {[%clk 0:00:44.5]} 28... h5 {[%clk
0:00:15.7]} 29. Rc4 {[%clk 0:00:42.3]} 29... Be6 {[%clk 0:00:11.9]} 30. Re4
{[%clk 0:00:38.2]} 30... Qg5+ {[%clk 0:00:10.5]} 31. Kf2 {[%clk 0:00:37.3]}
31... Bf5 {[%clk 0:00:08.9]} 32. Re8+ {[%clk 0:00:33.4]} 32... Kg7 {[%clk
0:00:08.4]} 33. Rdd8 {[%clk 0:00:31.9]} 33... Qh4+ {[%clk 0:00:07.5]} 34. Kg1
{[%clk 0:00:31.1]} 34... Qxa4 {[%clk 0:00:07.9]} 35. Re7 {[%clk 0:00:27.5]}
35... Kf6 {[%clk 0:00:07.5]} 36. Re3 {[%clk 0:00:25]} 36... c4 {[%clk
0:00:06.4]} 37. Bd5 {[%clk 0:00:21.4]} 37... Qb4 {[%clk 0:00:03.6]} 38. Rde8
{[%clk 0:00:15.4]} 38... c3 {[%clk 0:00:01.8]} 39. R8e7 {[%clk 0:00:14]} 39...
Qc5 {[%clk 0:00:02.1]} 40. Rxf7+ {[%clk 0:00:13.2]} 40... Kg5 {[%clk 0:00:02.8]}
41. h4+ {[%clk 0:00:06.9]} 41... Kh6 {[%clk 0:00:03]} 42. Re7 {[%clk 0:00:06.6]}
42... c2 {[%clk 0:00:02]} 43. Bg8 {[%clk 0:00:03.3]} 43... c1=Q+ {[%clk
0:00:02.9]} 44. Kh2 {[%clk 0:00:03.6]} 44... Q1xe3 {[%clk 0:00:02.8]} 45. Rh7#
{[%clk 0:00:03.6]} 1-0

[Event "*** SCC Grand Prix: Titled Tuesday Blitz"]
[Site "Chess.com"]
[Date "2020.10.13"]
[Round "7"]
[White "Matveev_Vladimir"]
[Black "realmadridtv"]
[Result "1-0"]
[WhiteElo "2682"]
[BlackElo "2409"]
[TimeControl "180+1"]
[EndTime "11:17:27 PDT"]
[Termination "Matveev_Vladimir won by checkmate"]

1. d4 {[%clk 0:03:00.9]} 1... Nf6 {[%clk 0:02:58.2]} 2. c4 {[%clk 0:03:01.4]}
2... e6 {[%clk 0:02:58.1]} 3. Nf3 {[%clk 0:03:01.2]} 3... Bb4+ {[%clk
0:02:57.8]} 4. Bd2 {[%clk 0:03:01]} 4... Bxd2+ {[%clk 0:02:51.6]} 5. Qxd2 {[%clk
0:03:01]} 5... Nc6 {[%clk 0:02:51.9]} 6. Nc3 {[%clk 0:03:00.9]} 6... d5 {[%clk
0:02:40.3]} 7. e3 {[%clk 0:02:56]} 7... O-O {[%clk 0:02:38.6]} 8. Be2 {[%clk
0:02:53.2]} 8... Qe7 {[%clk 0:02:38.4]} 9. cxd5 {[%clk 0:02:40.5]} 9... exd5
{[%clk 0:02:35.7]} 10. h3 {[%clk 0:02:40.7]} 10... Bf5 {[%clk 0:02:35.3]} 11.
O-O {[%clk 0:02:40.4]} 11... Rfe8 {[%clk 0:02:33.7]} 12. Rac1 {[%clk 0:02:34]}
12... Rad8 {[%clk 0:02:19.4]} 13. Bb5 {[%clk 0:02:33.8]} 13... Bd7 {[%clk
0:02:18.2]} 14. Na4 {[%clk 0:02:33.7]} 14... Ne4 {[%clk 0:02:09]} 15. Qd1 {[%clk
0:02:12.1]} 15... a6 {[%clk 0:02:03]} 16. Bxc6 {[%clk 0:02:05]} 16... Bxc6
{[%clk 0:02:03.9]} 17. Nc5 {[%clk 0:02:05.6]} 17... Bb5 {[%clk 0:01:53.9]} 18.
Re1 {[%clk 0:02:01.2]} 18... b6 {[%clk 0:01:38.1]} 19. Nxe4 {[%clk 0:01:36.8]}
19... dxe4 {[%clk 0:01:39]} 20. Nd2 {[%clk 0:01:36.6]} 20... c5 {[%clk
0:01:36.7]} 21. Nb3 {[%clk 0:01:27.3]} 21... a5 {[%clk 0:01:25.5]} 22. Qh5
{[%clk 0:01:02.1]} 22... a4 {[%clk 0:01:14.9]} 23. Nd2 {[%clk 0:00:48.8]} 23...
g6 {[%clk 0:01:13.5]} 24. Qh6 {[%clk 0:00:45.6]} 24... cxd4 {[%clk 0:01:11.8]}
25. exd4 {[%clk 0:00:46.5]} 25... Rxd4 {[%clk 0:01:12.2]} 26. Nb1 {[%clk
0:00:47]} 26... Rc4 {[%clk 0:01:03]} 27. Nc3 {[%clk 0:00:44.8]} 27... Bc6 {[%clk
0:01:03.3]} 28. a3 {[%clk 0:00:39.6]} 28... b5 {[%clk 0:01:02.6]} 29. Nd1 {[%clk
0:00:33.4]} 29... Rxc1 {[%clk 0:00:48.2]} 30. Qxc1 {[%clk 0:00:34.3]} 30... Qf6
{[%clk 0:00:48.8]} 31. Qc5 {[%clk 0:00:27.5]} 31... Re5 {[%clk 0:00:44]} 32. Qb6
{[%clk 0:00:22.8]} 32... Rg5 {[%clk 0:00:39.6]} 33. Ne3 {[%clk 0:00:20.5]} 33...
h5 {[%clk 0:00:29.5]} 34. Rd1 {[%clk 0:00:17.9]} 34... Kg7 {[%clk 0:00:28.3]}
35. Rc1 {[%clk 0:00:12.3]} 35... Be8 {[%clk 0:00:23.9]} 36. Qb8 {[%clk
0:00:12.1]} 36... Re5 {[%clk 0:00:21]} 37. Rc8 {[%clk 0:00:11.8]} 37... Qe6
{[%clk 0:00:19]} 38. Rd8 {[%clk 0:00:11.5]} 38... f5 {[%clk 0:00:17.8]} 39. g3
{[%clk 0:00:11.2]} 39... h4 {[%clk 0:00:17.6]} 40. gxh4 {[%clk 0:00:10.4]} 40...
f4 {[%clk 0:00:17.8]} 41. Ng4 {[%clk 0:00:11]} 41... Rc5 {[%clk 0:00:16.6]} 42.
Rxe8 {[%clk 0:00:11.2]} 42... Rc1+ {[%clk 0:00:16.5]} 43. Kh2 {[%clk 0:00:11.4]}
43... Qf7 {[%clk 0:00:16.7]} 44. Qd8 {[%clk 0:00:08.5]} 44... Rc4 {[%clk
0:00:15.7]} 45. Re7 {[%clk 0:00:08.7]} 45... Rc7 {[%clk 0:00:15]} 46. Rxc7
{[%clk 0:00:08.3]} 46... g5 {[%clk 0:00:14]} 47. Qf6+ {[%clk 0:00:07.1]} 47...
Kh7 {[%clk 0:00:11.8]} 48. Qxf7+ {[%clk 0:00:07.5]} 48... Kh8 {[%clk 0:00:12.4]}
49. Qg7# {[%clk 0:00:08.4]} 1-0